fUSD/lending_fUSD_20251017
["ID","MTS","AMOUNT","RATE_DAILY","PERIOD"]
[391573574,1760669440693,-150.0,0.00026074,4]
[391573575,1760669440703,-150.0,0.00026074,4]
[391573576,1760669440712,-150.0,0.00026078,4]
[391573577,1760669440722,-150.0,0.00026086,4]
[391573578,1760669440732,-150.0,0.0002609,4]
[391573579,1760669440742,-150.0,0.0002611,4]
[391573580,1760669440751,-150.0,0.00026115,4]
[391573581,1760669440761,-150.0,0.00026117,4]
[391573582,1760669440770,-150.0,0.00026121,4]
[391573583,1760669440780,-150.0,0.00026127,4]
[391573584,1760669440790,-150.0,0.00026139,4]
[391573585,1760669440800,-150.0,0.00026141,4]
[391573586,1760669440810,-150.0,0.00026141,4]
[391573587,1760669440821,-150.0,0.0002615,4]
[391573588,1760669440831,-150.0,0.00026155,4]
[391573589,1760669440844,-150.0,0.00026159,4]
[391573590,1760669440854,-150.0,0.00026162,4]
[391573591,1760669440864,-1314.18,0.00026163,2]
[391573592,1760669440874,-150.0,0.00026164,4]
[391573593,1760669440884,-150.0,0.00026168,4]
[391573594,1760669440894,-150.0,0.00026174,4]
[391573595,1760669440905,-163.96,0.00026175,2]
[391573596,1760669440914,-150.0,0.00026183,4]
[391573597,1760669440924,-300.0,0.00026184,2]
[391573598,1760669440934,-150.0,0.00026195,4]
[391573599,1760669440943,-150.0,0.00026201,4]
[391573600,1760669440952,-150.0,0.00026211,4]
[391573601,1760669440962,-150.0,0.00026211,4]
[391573602,1760669440972,-150.0,0.00026215,4]
[391573603,1760669440981,-150.0,0.00026222,4]
[391573604,1760669440991,-150.0,0.00026226,4]
[391573605,1760669441000,-150.0,0.00026233,4]
[391573606,1760669441010,-150.0,0.00026236,4]
[391573607,1760669441021,-150.0,0.00026238,4]
[391573608,1760669441031,-150.0,0.00026238,4]
[391573609,1760669441040,-150.0,0.00026248,4]
[391573610,1760669441050,-1329.36,0.0002625,2]
[391573611,1760669441060,-150.0,0.00026254,4]
[391573612,1760669441070,-150.0,0.00026262,4]
[391573613,1760669441080,-150.0,0.00026276,4]
[391573614,1760669441090,-150.0,0.00026276,4]
[391573615,1760669441100,-150.0,0.00026281,4]
[391573616,1760669441110,-150.0,0.00026281,4]
[391573617,1760669441120,-500.0,0.00026281,2]
[391573618,1760669441129,-505.47647784,0.00026281,2]
[391573619,1760669441139,-501.29859111,0.00026281,2]
[391573620,1760669441149,-500.56758679,0.00026281,2]
[391573621,1760669441159,-24120.127877,0.00026295,3]
[391573622,1760669441170,-150.0,0.00026301,4]
[391573623,1760669441180,-150.0,0.00026306,4]
[391573624,1760669441189,-150.0,0.00026309,4]
[391573625,1760669441199,-150.0,0.00026313,4]
[391573626,1760669441208,-150.0,0.00026313,4]
[391573627,1760669441218,-150.0,0.00026313,4]
[391573628,1760669441227,-150.0,0.00026316,4]
[391573629,1760669441238,-240.0,0.00026318,2]
[391573630,1760669441247,-269.17583591,0.00026327,2]
[391573631,1760669441257,-1043.12657002,0.00026328,2]
[391573632,1760669441267,-150.0,0.00026329,4]
[391573633,1760669441276,-150.0,0.00026346,4]
[391573634,1760669441286,-150.0,0.0002635,4]
[391573635,1760669441295,-150.0,0.00026351,4]
[391573636,1760669441305,-150.0,0.00026351,4]
[391573637,1760669441315,-150.0,0.00026356,4]
[391573638,1760669441325,-150.0,0.00026357,4]
[391573639,1760669441335,-150.0,0.00026365,4]
[391573640,1760669441344,-150.0,0.00026365,4]
[391573641,1760669441354,-150.0,0.00026365,4]
[391573642,1760669441364,-150.0,0.00026378,4]
[391573643,1760669441374,-150.0,0.0002638,4]
[391573644,1760669441383,-150.0,0.00026387,4]
[391573645,1760669441392,-150.0,0.00026395,2]
[391573646,1760669441403,-176.03,0.00026395,2]
[391573647,1760669441412,-354.85,0.00026395,2]
[391573648,1760669441424,-151.08,0.00026395,2]
[391573649,1760669441433,-301.03,0.00026395,2]
[391573650,1760669441443,-150.5,0.00026395,2]
[391573651,1760669441452,-150.0,0.00026395,2]
[391573652,1760669441462,-150.0,0.00026395,2]
[391573653,1760669441471,-168.22,0.00026395,2]
[391573654,1760669441481,-553.42,0.00026395,2]
[391573655,1760669441490,-150.0,0.00026395,2]
[391573656,1760669441500,-150.0,0.00026395,2]
[391573657,1760669441510,-168.22,0.00026395,2]
[391573658,1760669441519,-150.0,0.00026395,2]
[391573659,1760669441529,-150.0,0.00026395,2]
[391573660,1760669441540,-150.0,0.00026395,2]
[391573661,1760669441549,-168.22,0.00026395,2]
[391573662,1760669441559,-150.0,0.00026395,2]
[391573663,1760669441568,-176.05,0.00026395,2]
[391573664,1760669441578,-832.43,0.00026395,2]
[391573665,1760669441587,-176.03,0.00026395,2]
[391573666,1760669441597,-546.62,0.00026395,2]
[391573667,1760669441606,-175.84,0.00026395,2]
[391573668,1760669441616,-546.62,0.00026395,2]
[391573669,1760669441626,-1093.24,0.00026395,2]
[391573670,1760669441635,-335.89,0.00026395,2]
[391573671,1760669441644,-150.0,0.00026397,4]
[391573672,1760669441655,-150.0,0.000264,4]
[391573673,1760669441665,-150.0,0.00026403,4]
[391573674,1760669441677,-150.0,0.00026421,4]
[391573675,1760669441687,-150.0,0.00026421,4]
[391573676,1760669441696,-150.0,0.00026424,4]
[391573677,1760669441706,-21413.30018504,0.00026425,2]
[391573678,1760669441716,-150.0,0.00026429,4]
[391573679,1760669441726,-150.0,0.00026438,4]
[391573680,1760669441736,-150.0,0.00026439,4]
[391573681,1760669441745,-150.0,0.00026443,4]
[391573682,1760669441755,-163.96,0.00026447,2]
[391573683,1760669441765,-150.0,0.00026449,4]
[391573684,1760669441775,-150.0,0.00026453,4]
[391573685,1760669441784,-150.0,0.00026462,4]
[391573686,1760669441794,-150.0,0.00026478,4]
[391573687,1760669441803,-150.0,0.00026487,4]
[391573688,1760669441813,-240.0,0.0002649,2]
[391573689,1760669441823,-150.0,0.00026491,4]
[391573690,1760669441832,-150.0,0.00026491,4]
[391573691,1760669441846,-150.0,0.00026492,4]
[391573692,1760669441856,-150.0,0.00026496,4]
[391573693,1760669441866,-150.0,0.00026499,4]
[391573694,1760669441876,-643.0,0.000265,2]
[391573695,1760669441887,-150.0,0.00026508,4]
[391573696,1760669441896,-150.0,0.00026508,4]
[391573697,1760669441907,-150.0,0.00026508,4]
[391573698,1760669441918,-150.0,0.00026508,4]
[391573699,1760669441928,-150.0,0.00026518,4]
[391573700,1760669441938,-1329.36,0.00026524,2]
[391573701,1760669441948,-150.0,0.00026527,4]
[391573702,1760669441958,-150.0,0.00026531,4]
[391573703,1760669441967,-150.0,0.00026536,4]
[391573704,1760669441977,-150.0,0.00026543,4]
[391573705,1760669441987,-150.0,0.00026556,4]
[391573706,1760669441997,-150.0,0.00026559,4]
[391573707,1760669442007,-150.0,0.00026561,4]
[391573708,1760669442017,-150.0,0.00026561,4]
[391573709,1760669442027,-1149.77405302,0.00026566,2]
[391573710,1760669442036,-150.0,0.00026573,4]
[391573711,1760669442046,-150.0,0.00026573,4]
[391573712,1760669442056,-150.0,0.00026573,4]
[391573713,1760669442065,-150.0,0.0002659,4]
[391573714,1760669442075,-150.0,0.00026599,4]
[391573715,1760669442086,-322.6107,0.000266,2]
[391573716,1760669442095,-297.1488855,0.000266,2]
[391573717,1760669442105,-150.0,0.000266,4]
[391573718,1760669442115,-240.0,0.00026601,2]
[391573719,1760669442124,-150.0,0.00026611,4]
[391573720,1760669442135,-150.0,0.0002662,4]
[391573721,1760669442145,-150.0,0.00026624,4]
[391573722,1760669442155,-150.0,0.00026631,4]
[391573723,1760669442165,-150.0,0.00026631,4]
[391573724,1760669442175,-150.0,0.00026637,4]
[391573725,1760669442185,-150.0,0.00026638,4]
[391573726,1760669442195,-150.0,0.00026639,4]
[391573727,1760669442205,-150.0,0.00026648,4]
[391573728,1760669442216,-150.0,0.00026652,4]
[391573729,1760669442226,-150.0,0.0002666,4]
[391573730,1760669442236,-150.0,0.00026674,4]
[391573731,1760669442245,-150.0,0.0002668,4]
[391573732,1760669442255,-150.0,0.00026683,4]
[391573733,1760669442265,-150.0,0.00026684,4]
[391573734,1760669442276,-150.0,0.00026685,4]
[391573735,1760669442286,-150.0,0.00026687,4]
[391573736,1760669442296,-150.0,0.000267,4]
[391573737,1760669442306,-150.0,0.000267,4]
[391573738,1760669442316,-150.0,0.00026704,4]
[391573739,1760669442326,-150.0,0.00026716,4]
[391573740,1760669442336,-150.0,0.0002672,4]
[391573741,1760669442346,-150.0,0.00026722,4]
[391573742,1760669442356,-150.0,0.00026731,4]
[391573743,1760669442366,-637.29443754,0.00026734,2]
[391573744,1760669442375,-150.0,0.00026747,4]
[391573745,1760669442385,-150.0,0.00026747,4]
[391573746,1760669442395,-150.0,0.00026747,4]
[391573747,1760669442405,-150.0,0.00026747,4]
[391573748,1760669442416,-150.0,0.00026759,4]
[391573749,1760669442425,-150.0,0.0002676,4]
[391573750,1760669442435,-150.0,0.00026769,4]
[391573751,1760669442445,-150.0,0.0002677,4]
[391573752,1760669442456,-150.0,0.0002677,4]
[391573753,1760669442466,-150.0,0.00026778,4]
[391573754,1760669442477,-273.26,0.0002678,2]
[391573755,1760669442488,-496.85,0.00026781,30]
[391573756,1760669442499,-24120.127877,0.00026785,3]
[391573757,1760669442509,-880.54944235,0.00026785,2]
[391573758,1760669442520,-150.0,0.00026795,4]
[391573759,1760669442531,-150.0,0.00026797,4]
[391573760,1760669442541,-1329.36,0.00026798,2]
[391573761,1760669442552,-150.0,0.00026801,4]
[391573762,1760669442562,-150.0,0.00026809,4]
[391573763,1760669442572,-150.0,0.00026811,4]
[391573764,1760669442583,-1043.12656995,0.00026816,2]
[391573765,1760669442593,-150.0,0.00026821,4]
[391573766,1760669442603,-2403.3,0.00026821,2]
[391573767,1760669442613,-1199.23,0.00026821,2]
[391573768,1760669442623,-150.0,0.00026825,4]
[391573769,1760669442634,-500.62939821,0.00026829,2]
[391573770,1760669442644,-150.0,0.00026834,4]
[391573771,1760669442655,-150.0,0.00026834,4]
[391573772,1760669442665,-150.0,0.00026834,4]
[391573773,1760669442675,-11130.09986536,0.0002684,2]
[391573774,1760669442684,-150.0,0.0002684,4]
[391573775,1760669442694,-150.0,0.0002684,4]
[391573776,1760669442704,-150.0,0.00026841,4]
[391573777,1760669442714,-150.0,0.00026866,4]
[391573778,1760669442724,-150.0,0.00026871,4]
[391573779,1760669442734,-150.0,0.00026872,4]
[391573780,1760669442743,-875.34982447,0.00026873,6]
[391573781,1760669442753,-150.0,0.00026874,4]
[391573782,1760669442763,-150.0,0.00026882,4]
[391573783,1760669442772,-150.0,0.00026894,4]
[391573784,1760669442782,-150.0,0.00026899,4]
[391573785,1760669442792,-2500.0,0.000269,7]
[391573786,1760669442801,-2500.0,0.000269,7]
[391573787,1760669442811,-150.0,0.00026901,4]
[391573788,1760669442822,-150.0,0.00026908,4]
[391573789,1760669442832,-150.0,0.0002691,4]
[391573790,1760669442844,-150.0,0.0002691,4]
[391573791,1760669442854,-150.0,0.00026919,4]
[391573792,1760669442863,-150.0,0.00026921,4]
[391573793,1760669442873,-150.0,0.00026922,4]
[391573794,1760669442883,-150.0,0.00026938,4]
[391573795,1760669442893,-150.0,0.00026938,4]
[391573796,1760669442903,-150.0,0.00026938,4]
[391573797,1760669442914,-150.0,0.00026946,4]
[391573798,1760669442924,-150.0,0.00026962,4]
[391573799,1760669442934,-150.0,0.00026964,4]
[391573800,1760669442944,-150.0,0.00026966,4]
[391573801,1760669442954,-150.0,0.00026967,4]
[391573802,1760669442963,-500.38572349,0.00026973,2]
[391573803,1760669442973,-503.48936147,0.00026973,2]
[391573805,1760669442983,-501.00406977,0.00026973,2]
[391573807,1760669442993,-150.0,0.0002698,4]
[391573808,1760669443002,-150.0,0.0002698,4]
[391573809,1760669443275,-150.0,0.00026983,4]
[391573810,1760669443286,-1000.0,0.00026986,7]
[391573811,1760669443297,-24120.127877,0.0002699,3]
[391573812,1760669443306,-150.0,0.00026994,4]
[391573813,1760669443317,-44718.00088068,0.00027,30]
[391573814,1760669443327,-150.0,0.00027002,4]
[391573815,1760669443337,-150.0,0.00027003,4]
[391573816,1760669443346,-150.0,0.00027008,4]
[391573817,1760669443356,-150.0,0.00027013,4]
[391573818,1760669443366,-150.0,0.0002702,4]
[391573819,1760669443376,-150.0,0.00027029,4]
[391573820,1760669443386,-150.0,0.00027041,4]
[391573821,1760669443395,-150.0,0.00027043,4]
[391573822,1760669443405,-150.0,0.00027046,4]
[391573823,1760669443415,-240.0,0.00027049,2]
[391573824,1760669443424,-800.4702742,0.00027049,2]
[391573825,1760669443433,-3328.0598188,0.00027049,2]
[391573826,1760669443443,-10111.8683519,0.00027049,2]
[391573827,1760669443452,-150.0,0.0002705,4]
[391573828,1760669443462,-150.0,0.0002705,4]
[391573829,1760669443471,-150.0,0.00027057,4]
[391573830,1760669443481,-150.0,0.0002706,4]
[391573831,1760669443491,-150.0,0.00027065,4]
[391573832,1760669443503,-1329.36,0.00027072,2]
[391573833,1760669443518,-150.0,0.00027081,4]
[391573834,1760669443530,-150.0,0.00027083,4]
[391573835,1760669443540,-150.0,0.00027086,4]
[391573836,1760669443550,-150.0,0.00027089,2]
[391573837,1760669443559,-150.0,0.00027094,4]
[391573838,1760669443570,-150.0,0.00027094,4]
[391573839,1760669443580,-150.0,0.00027094,4]
[391573840,1760669443590,-150.0,0.00027107,4]
[391573841,1760669443600,-24120.127877,0.00027111,3]
[391573842,1760669443610,-475.0,0.00027114,2]
[391573843,1760669443620,-150.0,0.00027114,4]
[391573844,1760669443631,-200.0,0.0002712,2]
[391573845,1760669443643,-150.0,0.0002712,4]
[391573846,1760669443653,-150.0,0.0002712,4]
[391573847,1760669443664,-5010.91101412,0.0002712,2]
[391573848,1760669443674,-960.52580036,0.00027121,4]
[391573849,1760669443684,-1425.0,0.00027121,2]
[391573850,1760669443694,-880.54944236,0.00027122,2]
[391573851,1760669443704,-1425.0,0.00027123,2]
[391573852,1760669443715,-150.0,0.00027124,4]
[391573853,1760669443724,-1106.0402,0.00027127,2]
[391573854,1760669443734,-2000.0,0.00027127,2]
[391573855,1760669443744,-5000.0,0.00027127,2]
[391573856,1760669443755,-150.0,0.00027129,4]
[391573857,1760669443764,-150.0,0.00027132,4]
[391573858,1760669443775,-2164.14395994,0.00027142,2]
[391573859,1760669443785,-3082.99042,0.00027143,2]
[391573860,1760669443795,-1425.0,0.00027144,2]
[391573861,1760669443804,-2665.4175635,0.00027149,2]
[391573862,1760669443815,-2164.14395994,0.0002715,2]
[391573863,1760669443825,-150.0,0.00027154,4]
[391573864,1760669443835,-150.0,0.0002716,4]
[391573865,1760669443850,-150.0,0.00027164,4]
[391573866,1760669443860,-150.0,0.00027169,4]
[391573867,1760669443871,-1000.0,0.00027169,2]
[391573868,1760669443889,-1425.0,0.00027169,2]
[391573869,1760669443899,-168.0,0.00027169,2]
[391573870,1760669443911,-9834.36476134,0.00027172,2]
[391573871,1760669443924,-1715.0,0.00027173,2]
[391573872,1760669443934,-150.0,0.00027178,4]
[391573873,1760669443944,-637.29443752,0.0002718,2]
[391573874,1760669443955,-150.0,0.00027181,4]
[391573875,1760669443965,-294.88183747,0.00027183,2]
[391573876,1760669443975,-5653.51078226,0.00027185,2]
[391573877,1760669443986,-9834.36476134,0.00027187,2]
[391573878,1760669443996,-150.0,0.00027188,4]
[391573879,1760669444007,-150.0,0.0002719,4]
[391573880,1760669444017,-150.0,0.0002719,4]
[391573881,1760669444028,-150.0,0.00027193,4]
[391573882,1760669444038,-151.97898848,0.00027196,2]
[391573883,1760669444048,-2164.14395994,0.00027198,2]
[391573884,1760669444058,-1000.0,0.000272,2]
[391573885,1760669444069,-334.9977,0.000272,2]
[391573886,1760669444079,-150.0,0.00027201,4]
[391573887,1760669444089,-294.88183747,0.00027202,2]
[391573888,1760669444099,-294.88183747,0.00027204,2]
[391573889,1760669444110,-150.0,0.00027204,4]
[391573890,1760669444121,-150.0,0.00027206,4]
[391573891,1760669444131,-240.64514673,0.00027211,2]
[391573892,1760669444142,-18976.02203584,0.00027212,2]
[391573893,1760669444152,-163634.34181736,0.00027212,2]
[391573894,1760669444210,-378.66,0.00027212,2]
[391573895,1760669444229,-279.19296996,0.00027212,2]
[391573896,1760669444241,-1902.07,0.00027212,2]
[391573897,1760669444290,1234.0,0.00027397,120]
[391573898,1760669444330,-540.1535119,0.0002627,2]
[391573899,1760669444343,-1148.6154772,0.0002627,2]
[391573900,1760669444356,-9745.75385925,0.0002627,2]
[391573901,1760669444366,-22065.9995251,0.00027212,2]
[391573902,1760669444378,-29790.50399353,0.00027212,2]
[391573903,1760669444391,-388.8978384,0.00027212,2]
[391573904,1760669444409,-502.79659717,0.00027212,2]
[391573905,1760669445047,1234.0,0.00027397,120]
[391573907,1760669445537,-5115.98610162,0.00027212,2]
[391573908,1760669445574,1234.0,0.00027397,120]
[391573909,1760669445741,-14289.30557998,0.00027212,2]
[391573910,1760669446108,1234.0,0.00027397,120]
[391573911,1760669446631,1234.0,0.00027397,120]
[391573912,1760669447689,1234.0,0.00027397,120]
[391573914,1760669450264,1500.0,0.00026314,120]
[391573915,1760669451177,1234.0,0.00027397,120]
[391573916,1760669451712,1234.0,0.00027397,120]
[391573917,1760669452270,1234.0,0.00027397,120]
[391573918,1760669452809,1234.0,0.00027397,120]
[391573919,1760669453502,1234.0,0.00027397,120]
[391573920,1760669454443,303.36927175,0.00027397,120]
[391573926,1760669562715,2000.0,0.00027397,120]
[391573927,1760669562961,2000.0,0.00027397,120]
[391573928,1760669563219,2000.0,0.00027397,120]
[391573929,1760669563541,2000.0,0.00027397,120]
[391573930,1760669563882,2000.0,0.00027397,120]
[391573931,1760669564130,2000.0,0.00027397,120]
[391573932,1760669564402,2000.0,0.00027397,120]
[391573942,1760669726630,150.0,0.00027397,120]
[391573943,1760669726812,150.0,0.00027397,120]
[391573944,1760669727265,179.0,0.00027397,120]
[391573947,1760669747149,2000.0,0.00027397,120]
[391573948,1760669747393,2000.0,0.00027397,120]
[391573949,1760669747661,2000.0,0.00027397,120]
[391573950,1760669747937,2000.0,0.00027397,120]
[391573951,1760669748198,2000.0,0.00027397,120]
[391573952,1760669748467,2000.0,0.00027397,120]
[391573953,1760669748724,2000.0,0.00027397,120]
[391573954,1760669748995,2000.0,0.00027397,120]
[391573955,1760669749246,2000.0,0.00027397,120]
[391573956,1760669749537,2000.0,0.00027397,120]
[391573957,1760669749796,2000.0,0.00027397,120]
[391573958,1760669750803,2000.0,0.00027397,120]
[391573959,1760669750848,2000.0,0.00027397,120]
[391573960,1760669750883,2000.0,0.00027397,120]
[391573961,1760669750932,2000.0,0.00027397,120]
[391573962,1760669751188,2000.0,0.00027397,120]
[391573963,1760669751434,2000.0,0.00027397,120]
[391573964,1760669808308,2000.0,0.00027397,120]
[391573965,1760669808572,2000.0,0.00027397,120]
[391573966,1760669808962,2000.0,0.00027397,120]
[391573967,1760669809213,2000.0,0.00027397,120]
[391573968,1760669809485,2000.0,0.00027397,120]
[391573969,1760669809756,2000.0,0.00027397,120]
[391573970,1760669810034,2000.0,0.00027397,120]
[391573971,1760669810281,2000.0,0.00027397,120]
[391573972,1760669810541,2000.0,0.00027397,120]
[391573973,1760669810798,2000.0,0.00027397,120]
[391573974,1760669811055,1956.0,0.00027397,120]
[391573980,1760670117179,1551.03,0.00025899,120]
[391573981,1760670125753,150.0,0.00023327,120]
[391574019,1760670416352,2000.0,0.00027397,120]
[391574020,1760670416600,2000.0,0.00027397,120]
[391574021,1760670416846,2000.0,0.00027397,120]
[391574022,1760670417089,2000.0,0.00027397,120]
[391574023,1760670417336,2000.0,0.00027397,120]
[391574024,1760670417635,2000.0,0.00027397,120]
[391574025,1760670422211,1009.03436,0.000273,120]
[391574037,1760670439354,1021.47436,0.000273,120]
[391574039,1760670445923,1009.03436,0.000273,120]
[391574040,1760670458104,1009.03436,0.000273,120]
[391574041,1760670478700,2000.0,0.00027397,120]
[391574042,1760670526214,996.41,0.000112,2]
[391574043,1760670526447,996.41,0.0001179,2]
[391574044,1760670526633,996.41,0.00012379,2]
[391574045,1760670530205,-462.28608638,0.00012969,2]
[391574046,1760670536033,-195.0,0.00012969,2]
[391574047,1760670537977,-198.86127945,0.00012969,2]
[391574048,1760670539479,-140.26263417,0.00012969,2]
[391574049,1760670539503,-311.10736583,0.00013558,2]
[391574050,1760670541445,-164.35433313,0.00013558,2]
[391574051,1760670543464,-449.86340805,0.00013558,2]
[391574053,1760670590865,166.58557391,0.00016,30]
[391574054,1760670598817,164.354,0.00027388,120]
[391574056,1760670620864,-71.08489299,0.00013558,2]
[391574057,1760670620886,-189.06328597,0.00013853,2]
[391574058,1760670623652,-5.93671403,0.00013853,2]
[391574059,1760670623676,-300.0,0.00013853,2]
[391574060,1760670623699,-205.4509289,0.00013853,2]
[391574069,1760670631758,-44.5490711,0.00013853,2]
[391574070,1760670631768,-996.41,0.00014148,2]
[391574071,1760670631778,-256.80593955,0.00014537,2]
[391574072,1760670631789,-996.41,0.00014737,2]
[391574073,1760670631799,-511.62510276,0.00014914,2]
[391574074,1760670631808,-195.0,0.00014914,2]
[391574075,1760670631819,-195.0,0.00014914,2]
[391574076,1760670631829,-300.0,0.00014914,2]
[391574077,1760670631838,-250.0,0.00014914,2]
[391574078,1760670631848,-300.0,0.00014914,2]
[391574079,1760670631858,-996.41,0.00015327,2]
[391574080,1760670631868,-151.0,0.00015504,2]
[391574081,1760670631877,-719.08802185,0.00015916,2]
[391574082,1760670631890,-277.32197815,0.00015916,2]
[391574083,1760670631899,-520.25598721,0.00016412,2]
[391574084,1760670631909,-996.41,0.00016506,2]
[391574085,1760670631919,-150.0,0.00016691,2]
[391574086,1760670631931,-1200.0,0.00017094,2]
[391574087,1760670631941,-996.41,0.00017095,2]
[391574088,1760670631951,-500.0,0.00017339,2]
[391574089,1760670631961,-300.0,0.00017684,2]
[391574090,1760670631971,-300.0,0.00017684,2]
[391574091,1760670631982,-300.0,0.00017684,2]
[391574092,1760670631991,-996.41,0.00017685,2]
[391574093,1760670632002,-250.0,0.00017915,2]
[391574094,1760670632012,-1200.0,0.00018133,2]
[391574095,1760670632021,-1296.31,0.00018133,2]
[391574096,1760670632031,-300.7009608,0.00018134,2]
[391574097,1760670632041,-996.41,0.00018274,2]
[391574098,1760670632050,-1296.31,0.00018407,2]
[391574100,1760670632060,-1296.31,0.00018681,2]
[391574102,1760670632070,-1680.0,0.00018762,2]
[391574104,1760670632079,-996.41,0.00018864,2]
[391574105,1760670632089,-1296.31,0.00018955,2]
[391574106,1760670632098,-1296.31,0.00019229,2]
[391574108,1760670632108,-420.0,0.00019301,2]
[391574109,1760670632118,-420.0,0.00019301,2]
[391574110,1760670632127,-250.0,0.00019343,7]
[391574111,1760670632137,-996.41,0.00019453,2]
[391574113,1760670632147,-1296.31,0.00019503,2]
[391574116,1760670632157,-1296.31,0.00019777,2]
[391574118,1760670632166,-996.41,0.00020043,2]
[391574120,1760670632177,-1296.31,0.00020051,2]
[391574122,1760670632187,-1296.31,0.00020325,2]
[391574124,1760670632197,-168.87,0.00020438,2]
[391574125,1760670632207,-1296.31,0.00020599,2]
[391574126,1760670632216,-996.41,0.00020632,2]
[391574127,1760670632226,-405.0,0.00020675,2]
[391574128,1760670632235,-804.35401131,0.00020873,2]
[391574129,1760670632247,-287.44003504,0.00020873,2]
[391574130,1760670632263,-204.51595365,0.00020873,2]
[391574131,1760670632273,-587.0,0.00021067,2]
[391574132,1760670632283,-1296.31,0.00021147,2]
[391574133,1760670632293,-996.41,0.00021222,2]
[391574134,1760670632304,-1296.31,0.00021421,2]
[391574135,1760670632314,-1077.95157764,0.00021695,2]
[391574136,1760670632327,-218.35842236,0.00021695,2]
[391574137,1760670632337,-81.63157764,0.00021757,2]
[391574138,1760670632349,-18373.87842236,0.00021757,2]
[391574139,1760670632358,-150.99,0.00021757,2]
[391574140,1760670632368,-150.99,0.00021757,2]
[391574141,1760670632378,-305.7,0.00021757,2]
[391574142,1760670632388,-1514.62,0.00021757,2]
[391574143,1760670632398,-7634.57,0.00021757,2]
[391574144,1760670632407,-8990.38,0.00021757,2]
[391574145,1760670632746,-15529.85314597,0.00021757,2]
[391574146,1760670632759,-52925.32800253,0.00021757,2]
[391574147,1760670632772,-30040.2788515,0.00021757,2]
[391574148,1760670632783,-6009.23,0.00021757,2]
[391574149,1760670632793,-999.99,0.00021757,2]
[391574150,1760670632804,-9999.99,0.00021757,2]
[391574151,1760670632815,-476.87708629,0.00021773,2]
[391574152,1760670632825,-500.0,0.00021773,2]
[391574153,1760670632835,-502.68204026,0.00021773,2]
[391574154,1760670632845,-500.0,0.00021773,2]
[391574155,1760670632855,-996.41,0.00021812,2]
[391574156,1760670632866,-1296.31,0.00021968,2]
[391574157,1760670632876,-167.92,0.00022,2]
[391574158,1760670632886,-1296.34604892,0.00022242,2]
[391574159,1760670632896,-996.41,0.00022401,2]
[391574160,1760670632906,-164.77,0.00022896,2]
[391574161,1760670632916,-823.0,0.00022994,2]
[391574162,1760670632926,-1551.03,0.00023022,2]
[391574163,1760670632936,-555.53,0.000231,2]
[391574164,1760670632946,-150.0,0.00023327,2]
[391574165,1760670632957,-905.57,0.0002333,2]
[391574166,1760670632968,-167.92,0.00023382,2]
[391574167,1760670632978,-231.22904468,0.00023589,2]
[391574168,1760670632987,-31552.84,0.00023603,2]